Cogmind - Beta 14 @@@ ROGUE MODE // 2025.01.17 @ 09:45:16 Player: Hydrogenious Result: Destroyed by H-61 Shepherd with Heavy Assault Cannon Performance ------------- Evolutions (2) 1000 Regions Visited (3) 600 Robots Destroyed (43) 215 Value Destroyed (1216) 1216 Prototype IDs (3) 60 Alien Tech Used (0) 0 Bonus (66) 66 TOTAL SCORE: 3157 Bonus ------- High Alert Combat Kills 66 Cogmind --------- Core Integrity 0/550 Matter 224/300 Energy 100/100 System Corruption 2% Temperature Cool (0) Movement Walking (180) Ox1 Location -8/Materials Parts ------- > --- POWER (1) -------- (None) > --- PROPULSION (3) --- VSS Leg > --- UTILITY (4) ------ Large Storage Unit Visual Processing Unit Signal Interpreter > --- WEAPON (3) ------- (None) > --- INVENTORY (15) --- Light Ion Engine Light Ion Engine Aluminum Leg Wheel Improved Heat Sink Small Storage Unit Terrain Scanner Peak State ------------ > --- POWER ------------ Ion Engine > --- PROPULSION ------- Wheel Wheel Armored Wheel > --- UTILITY ---------- Heat Sink Large Storage Unit Visual Processing Unit Signal Interpreter > --- WEAPON ----------- Particle Cannon Shotgun Flak Cannon > --- INVENTORY -------- Light Ion Engine Aluminum Leg Aluminum Leg Aluminum Leg Wheel Small Storage Unit Terrain Scanner Hardlight Generator Rocket Launcher [Rating: 18] Favorites ----------- Power Ion Engine Engine Ion Engine Power Core Light Nuclear Core Propulsion Wheel Leg Aluminum Leg Wheel Wheel Utility Large Storage Unit Device Heat Sink Storage Large Storage Unit Processor Signal Interpreter Weapon Medium Laser Energy Gun Medium Laser Energy Cannon Particle Cannon Ballistic Gun Shotgun Ballistic Cannon Flak Cannon Launcher Rocket Launcher Build | -11 -10 -9 -8 ------- Run | Yrd Mat Mat Mat Slots Evolved 4 | . . 2 2 Power . | . . . . Propulsion 1 | . . . 1 Utility 2 | . . 1 1 Weapon 1 | . . 1 . Parts Attached 35 | 6 3 3 23 Power 3 | 1 . . 2 Engine 2 | 1 . . 1 Core 1 | . . . 1 Reactor . | . . . . Propulsion 16 | 2 . . 14 Treads . | . . . . Leg 7 | . . . 7 Wheel 9 | 2 . . 7 Hover . | . . . . Flight . | . . . . Utility 6 | 1 2 1 2 Device 2 | . . . 2 Storage 2 | 1 1 . . Processor 2 | . 1 1 . Hackware . | . . . . Protection . | . . . . Artifact . | . . . . Weapon 10 | 2 1 2 5 Energy Gun 2 | . 1 . 1 Energy Cannon 1 | . . 1 . Ballistic Gun 4 | 2 . 1 1 Ballistic Cannon 1 | . . . 1 Launcher 2 | . . . 2 Special Weapon . | . . . . Impact Weapon . | . . . . Slashing Weapon . | . . . . Piercing Weapon . | . . . . Special Melee Weapon . | . . . . Unidentified Prototypes . | . . . . Parts Lost 23 | . 3 . 20 Power 3 | . . . 3 Propulsion 10 | . 1 . 9 Utility 2 | . . . 2 Weapon 8 | . 2 . 6 Highest Loss Streak 6 | . 2 . 6 To Critical Strikes . | . . . . Average Slot Usage (%) 81 | . 79 86 80 Engine 10 | . 14 11 8 Leg 2 | . . . 4 Wheel 14 | . 17 11 13 Device 3 | . . . 7 Storage 10 | . 14 11 9 Processor 15 | . 5 22 18 Energy Gun 6 | . 10 11 1 Energy Cannon 5 | . . 10 5 Ballistic Gun 10 | . 17 10 7 Peak Build Rating 18 | 6 6 11 18 Average Rating 10 | 4 5 10 14 On Entrance 5 | . 6 5 11 Naked Turns . | . . . . Heaviest Build 39 | 13 29 34 39 Greatest Support 32 | 20 20 10 32 Greatest Overweight (x) 3 | . 2 3 3 Average Overweight (x) 1 | . 1 2 1 Largest Inventory Capacity 15 | 8 15 15 15 Average Capacity 13 | 6 12 15 15 Most Carried 12 | 5 5 7 12 Average Carried 6 | 2 2 4 9 Final Capacity 15 | 8 15 15 15 Final Carried 7 | 2 4 7 7 Class Distribution -------------------- 39% | Skirmisher 30% | Mutant 21% | Scavenger-Mutant 8% | Scavenger-Skirmisher Dominant Class ---------------- Mutant | -10/Materials Skirmisher | -9/Materials Scavenger-Mutant | -8/Materials Resources | -11 -10 -9 -8 ----------- Run | Yrd Mat Mat Mat Matter Collected 888 | 193 159 70 466 Remotely . | . . . . Salvage Created 1185 | . 216 198 771 Parts 104 | . 23 20 61 Haulers Intercepted . | . . . . Recyclers Shooed . | . . . . Parts Field Recycled . | . . . . Retrieved Matter . | . . . . Parts Self-Destructed . | . . . . Prevented . | . . . . Kills | -11 -10 -9 -8 ------- Run | Yrd Mat Mat Mat Combat Hostiles Destroyed 34 | . 7 4 23 Melee 1 | . . . 1 Guns 18 | . 7 1 10 Cannons 9 | . . 3 6 AOE 6 | . . . 6 Classes Destroyed 8 | . 3 2 3 Worker 1 | . . . 1 Builder 3 | . . . 3 Operator 1 | . . 1 . Watcher 4 | . 3 1 . Swarmer 12 | . 5 . 7 Grunt 16 | . 2 3 11 Sentry 5 | . . 1 4 Hunter 1 | . . . 1 Best Kill Streak 7 | . 5 4 7 Combat Bots Only 6 | . 5 4 6 Max Kills in Single Turn 3 | . 1 1 3 Gunslinging . | . . . . Exploded 3 | . . . 3 Melee 1 | . . . 1 Uniques/NPCs Destroyed . | . . . . Combat | -11 -10 -9 -8 -------- Run | Yrd Mat Mat Mat Hostile Shots Fired 258 | . 60 6 192 Missed 83 | . 20 3 60 Damage Taken 2405 | . 394 57 1954 Core 622 | . 70 . 552 Absorbed by Shields 116 | . . . 116 Core Remaining (%) 90 | 100 72 100 . Volleys Fired 101 | . 25 16 60 Largest 3 | . 2 3 3 Hottest 145 | . 70 141 145 Shots Fired 206 | . 50 35 121 Gun 138 | . 50 19 69 Cannon 57 | . . 16 41 Launcher 11 | . . . 11 Special . | . . . . Kinetic 116 | . 38 8 70 Thermal 79 | . 12 27 40 Explosive 11 | . . . 11 Electromagnetic . | . . . . Robot Hit Streak 7 | . 7 4 6 Robot Miss Streak 8 | . 4 6 8 Penetration Max 1 | . . . 1 Secondary Targets 3 | . 3 . . Max Gunslinging Chain 1 | . 1 . . Shots Hit Robots 112 | . 26 16 70 Core Hits 82 | . 15 10 57 Critical Kills 1 | . . . 1 Critical Parts Destroyed . | . . . . Critical Strikes 3 | . . . 3 Burn 2 | . . . 2 Destroy 1 | . . . 1 Melee Attacks . | . . . . Impact . | . . . . Slashing . | . . . . Piercing . | . . . . Sneak Attacks . | . . . . Combat Hostiles . | . . . . Follow-up Attacks . | . . . . Damage Inflicted 2682 | . 326 301 2055 Guns 1269 | . 313 118 838 Cannons 604 | . . 165 439 Explosions 750 | . . . 750 Melee . | . . . . Ramming 59 | . 13 18 28 Kinetic 1289 | . 250 93 946 Thermal 584 | . 63 190 331 Explosive 750 | . . . 750 Electromagnetic . | . . . . Impact . | . . . . Slashing . | . . . . Piercing . | . . . . Highest Corruption 6 | . . 6 2 Average Corruption 3 | . . 5 2 Corruption Purged . | . . . . Corruption Blocked . | . . . . Effects 12 | . . 6 6 Message Errors 3 | . . 1 2 Matter Fused 2 | . . 2 . Heat Flow Errors 3 | . . 1 2 Data Loss (minor) 1 | . . . 1 Data Loss (major) 1 | . . 1 . Misfires 1 | . . . 1 Weapon Failures 1 | . . 1 . Overload Shots . | . . . . Overflow Damage 15 | . . . 15 Projectiles . | . . . . Explosions 15 | . . . 15 Melee . | . . . . Knockbacks 1 | . . . 1 Impact . | . . . . Kinetic 1 | . . . 1 Secondary . | . . . . Self-Inflicted Damage 101 | . 6 8 87 Shots 3 | . . . 3 Rammed 7 | . 2 2 3 Targets Rammed 8 | . 2 2 4 Kicked 1 | . . . 1 Crushed . | . . . . Highest Temperature 282 | . 36 282 174 Average Temperature 65 | . 13 109 56 Received Heat Transfer 955 | . 111 18 826 Siege Activations . | . . . . Robots Corrupted . | . . . . Combat Hostiles . | . . . . Parts Fried . | . . . . Impact Corruptions . | . . . . Robots Melted . | . . . . Combat Hostiles . | . . . . Parts Melted 1 | . . . 1 Heat Transferred 1369 | . 185 370 814 Parts Sabotaged . | . . . . Parts Stolen . | . . . . Parts Stripped . | . . . . Power Chain Reactions . | . . . . Alert | -11 -10 -9 -8 ------- Run | Yrd Mat Mat Mat Peak Influence 557 | . 243 192 557 Initial 13 | . . 13 . Average 169 | . 123 61 273 Maximum Alert Level 2 | . 1 . 2 Low Security (%) 66 | 100 86 100 32 Level 1 20 | . 13 . 38 Level 2 13 | . . . 29 Level 3 . | . . . . Level 4 . | . . . . Level 5 . | . . . . High Security . | . . . . Max Security . | . . . . Squads Dispatched 10 | . . 4 6 Investigation 4 | . . 2 2 Extermination . | . . . . Reinforcement 6 | . . 2 4 Assault . | . . . . Garrison . | . . . . Intercept . | . . . . Searches Triggered . | . . . . Construction Impeded 3 | . . 1 2 Haulers Reinforced . | . . . . Active Scanning Responses . | . . . . Cargo Convoy Interrupts . | . . . . Stealth | -11 -10 -9 -8 --------- Run | Yrd Mat Mat Mat Distress Signals 5 | . 1 1 3 Communications Jammed . | . . . . Distress Signals . | . . . . Times Spotted 67 | . 17 11 39 Peak Tracking Total 6 | . 6 4 6 Tactical Retreats 2 | . 1 . 1 Traps | -11 -10 -9 -8 ------- Run | Yrd Mat Mat Mat Traps Triggered 5 | . . 5 . Indirectly . | . . . . Trap Hack Attempts . | . . . . Triggered . | . . . . Disarmed . | . . . . Reprogrammed . | . . . . Reused . | . . . . Traps Extracted . | . . . . Installed . | . . . . Triggered . | . . . . Machines | -11 -10 -9 -8 ---------- Run | Yrd Mat Mat Mat Machines Disabled 2 | . . . 2 Max in Single Turn 1 | . . . 1 Machines Repaired . | . . . . Machines Dismantled . | . . . . Machines Sabotaged . | . . . . Overloaded Fab Kills . | . . . . Hacking | -11 -10 -9 -8 --------- Run | Yrd Mat Mat Mat Machines Accessed 12 | . 4 4 4 Terminals 11 | . 4 3 4 Fabricators . | . . . . Repair Stations . | . . . . Recycling Units . | . . . . Scanalyzers 1 | . . 1 . Garrison Access . | . . . . Total Hacks 32 | . 8 8 16 Successful 19 | . 7 3 9 Failed 12 | . 1 5 6 Catastrophic 2 | . . 1 1 Database Lockouts 1 | . . . 1 Manual . | . . . . Terminals 30 | . 8 6 16 Fabricators . | . . . . Repair Stations . | . . . . Recycling Units . | . . . . Scanalyzers 2 | . . 2 . Garrison Access . | . . . . Terminal Hacks 19 | . 7 3 9 Record 7 | . . . 7 Robot Analysis 1 | . 1 . . Prototype ID Bank 2 | . 1 1 . Level Access Points 1 | . . 1 . Branch Access Points 1 | . 1 . . Emergency Access Points 1 | . . 1 . Alert Level 1 | . . . 1 Locate Traps 2 | . 1 . 1 Dispatch Records 1 | . 1 . . Hauler Manifests 2 | . 2 . . Fabricator Hacks . | . . . . Repair Station Hacks . | . . . . Recycling Unit Hacks . | . . . . Scanalyzer . | . . . . Garrison Access Hacks . | . . . . Unauthorized Hacks . | . . . . Terminals . | . . . . Fabricators . | . . . . Repair Stations . | . . . . Recycling Units . | . . . . Scanalyzers . | . . . . Garrison Access . | . . . . Data Cores Recovered 1 | . . 1 . Used 1 | . . 1 . Hacking Detections 9 | . 1 4 4 Full Trace Events 5 | . 1 2 2 Feedback Events . | . . . . Feedback Blocked . | . . . . Robot Schematics Acquired . | . . . . Robots Built . | . . . . Authchips . | . . . . Time . | . . . . Total Robot Build Rating . | . . . . Part Schematics Acquired . | . . . . Parts Built . | . . . . Authchips . | . . . . Time . | . . . . Total Part Build Rating . | . . . . Parts Repaired . | . . . . Time . | . . . . Parts Recycled . | . . . . Recycled Matter . | . . . . Retrieved Matter . | . . . . Retrieved Components . | . . . . Parts Scanalyzed . | . . . . Part Schematics Acquired . | . . . . Parts Damaged . | . . . . Bothacking | -11 -10 -9 -8 ------------ Run | Yrd Mat Mat Mat Used RIF Installer . | . . . . Robots Hacked . | . . . . Non-combat . | . . . . Combat . | . . . . Robot Hacks Applied . | . . . . Relay Couplers Released . | . . . . Fabnet Peak Effective % . | . . . . Robots Rewired . | . . . . Allies Hacked . | . . . . Hacks Repelled . | . . . . Allies | -11 -10 -9 -8 -------- Run | Yrd Mat Mat Mat Total Allies . | . . . . Largest Group . | . . . . Highest-Rated Group . | . . . . Highest-Rated Ally . | . . . . Total Orders . | . . . . Ally Attacks . | . . . . Total Damage . | . . . . Kills . | . . . . Allies Corrupted . | . . . . Allies Melted . | . . . . Intel | -11 -10 -9 -8 ------- Run | Yrd Mat Mat Mat Robot Analysis Total 1 | . 1 . . Derelict Logs Recovered . | . . . . Drone Launches . | . . . . Drone Recoveries . | . . . . Exploration | -11 -10 -9 -8 ------------- Run | Yrd Mat Mat Mat Turns Passed 1691 | 77 414 433 767 Spaces Moved 1228 | 83 332 304 509 Core 10 | 10 . . . Treads . | . . . . Legs 108 | . . . 108 Wheels 1110 | 73 332 304 401 Hover . | . . . . Flight . | . . . . Fastest Speed 50 | 50 80 110 95 Average Speed 107 | 76 99 123 108 Slowest Speed 185 | 80 110 125 185 Overloaded Moves . | . . . . Propulsion Burnouts . | . . . . Robots Hopped . | . . . . Cave-ins Triggered . | . . . . Exploration Rate (%) 31 | 4 38 34 49 Regions Visited 3 Branch Regions . Pre-discovered Areas . | . . . . Known Exits Taken 2 | . 1 1 . Unknown Exits Taken 1 | 1 . . . Scrap Searched . | . . . . Spaces Dug . | . . . . Terrain Destroyed 103 | . . . 103 Melee . | . . . . Projectile 3 | . . . 3 AOE 100 | . . . 100 Terrain Rammed . | . . . . Walls Destroyed . | . . . . Machines Disabled . | . . . . Actions | -11 -10 -9 -8 --------- Run | Yrd Mat Mat Mat Total 1414 | 96 367 330 621 Wait 9 | . 2 . 7 Move 1225 | 82 331 303 509 Hop . | . . . . Pick Up 34 | 8 4 6 16 Fast Attach . | . . . . Attach 29 | 6 2 3 18 Detach 2 | . . . 2 Swap 6 | . 1 . 5 Drop . | . . . . Fire 101 | . 25 16 60 Melee . | . . . . Ram 7 | . 2 2 3 Kick 1 | . . . 1 Crush . | . . . . Escape Stasis . | . . . . Rewire . | . . . . Trap . | . . . . Miscellaneous . | . . . . Route ------- -11/Scrapyard -10/Materials (discovered 3 exits: *Mat / Min x2) -9/Materials (discovered 4 exits: *Mat x3 / [*Min]) -8/Materials (discovered 1 exit: [*Fac]) History --------- Turn | Location | Event 24 | -11/Scrapyard | Discovered new exit (range 15) 78 | -11/Scrapyard | Entered Materials 103 | -10/Materials | Identified exit to Mines 301 | -10/Materials | Build established: Mutant 334 | -10/Materials | Discovered new exit (range 13) 349 | -10/Materials | Identified exit to Materials 492 | -10/Materials | Entered another Materials area 492 | -9/Materials | Evolved 2 slots: Utility x1, Weapon x1 652 | -9/Materials | Discovered new exit (range 18) 793 | -9/Materials | Discovered new exit (range 8) 812 | -9/Materials | Identified exit to Materials 814 | -9/Materials | Build established: Skirmisher 925 | -9/Materials | Entered another Materials area 925 | -8/Materials | Evolved 2 slots: Propulsion x1, Utility x1 1239 | -8/Materials | Central database locked down 1446 | -8/Materials | Lost 6 parts (3n3w) 1476 | -8/Materials | Core integrity fell below 50% 1502 | -8/Materials | Lost 3 parts (1n1u1w) 1556 | -8/Materials | Discovered new exit (range 17) 1606 | -8/Materials | Lost 4 parts (2n1u1w) 1674 | -8/Materials | Core integrity fell below 20% 1688 | -8/Materials | Build established: Scavenger-Mutant 1692 | -8/Materials | Destroyed by H-61 Shepherd with Heavy Assault Cannon Last Messages --------------- Wheel destroyed. EXIT=FOUND K-01 Serf collects debris. Com. Wheel destroyed. K-01 Serf collects debris. RTQBBXDCDYQS 48PG#R|2V K-01 Serf collects debris. Hardlight Generator destroyed. K-01 Serf collects debris. Ion Engine destroyed. System corrupted: Component data lost. Kicked G-47 Trooper. G-47 Trooper destroyed. Acquired 49 matter. Critical hit (Burn: +37). Aluminum Leg destroyed. ALERT: Suspicious intruders detected, dispatching Specialist reinforcements to area. Aluminum Leg destroyed. Lgt. Nuclear Core destroyed. Map ----- +----------------------------------------------------+ | | | | | | | | | | | ?????????????????????????????????? | | ?????????????????????###########?? | | ?????????????????????# !#?? | | ?????????????????????#= #?? | | ?????????????????????# """"""" #?? | | ?????????????????????#[""""""" #?? | | ??????????############ """"""" #?? | | ??????????# ! # """"""" #?? | | ??????????# # """"""" #?? | | ??????????# # #?? | | ??????????# ####g######?? | | ???######## # #???? | | ???# !#! # #???? | | ???# [ # # #???? | | ???# =# ; #???? | | ???# "Y" # # #???? | | ???# """ # # #???? | | ????? =# # #???? | | ??????#+### ###% %###???? | | ??????# / #?# #?????? | | ####??# ### #?# @ #?????? | | ???# #?# #?# #?????? | | "" ???# #?############?# #?????? | | ""????# #??????????????# #?????? | | ""????# #??????????????# #?????? | | ?????# #??????????????# +?????? | | ?????# #??????????????# #?????? | | ####### ###????????????# #?????? | | #????????????# #?????? | | +????????????# #?????? | | #????????????# #?????? | | ######## #????????????# #?????? | | ???????? #????????????# #?????? | | ???????? #????????????? ??????? | | ???????? #????????????? ??????? | | ???????? #????????????? H ??????? | | ???????? #??????????????????????? | | ???????? ??????????????????????? | | ???????? ??????????????????????? | | ????????? ??????????????????????? | | ????????? ?????????????????????? | | ????????? ?????????????????????? | | ????????? ##?????????????????????? | | ?????????????????????????????????? | | ?????????????????????????????????? | +----------------------------------------------------+ Best States ------------- Heat Dissipation 41 Energy Generation 14 Energy Capacity 250 Matter Stores 300 Matter Capacity 300 Sight Range 18 Terrain Scan Density 10 Evasion (%) 55 Item Schematics ----------------- None Robot Schematics ------------------ None Fabricated ------------ Nothing Alien Tech Used ----------------- None Achievements -------------- Dynamic Key Challenges ------------ None Game ------ Seed FireDeliveryAmplifier Manual? 0 Play Time 00:26:20 Cumulative 6.0 hours Start 2025.01.17 @ 08:35:25 End 2025.01.17 @ 09:45:16 Sessions 1 Manual Loads 0 Difficulty Rogue Special Mode None Game No. 13 Rogue 13 Adventurer 0 Explorer 0 Win Type - Total 0 Types 0/0/0/0/0/0/0/0/0 Lore% 10 Gallery% 9 Achievement% 13 Wizard Run 0 Options --------- Layout 1 ASCII 0 Keyboard 0 Movement Arrows Keybinds 0 Fullscreen 1 Font 24/Smallcaps Map View 50x35 Zoom Use 0% Tactical HUD 0 Map Filters NONE Filters NONE Steam 1 RUN: 58085591-ede9-48f0-9809-d9deaebeaf7b